fUSD/lending_fUSD_20240916
["ID","MTS","AMOUNT","RATE_DAILY","PERIOD"]
[338323367,1726498237541,-151.2,0.0001469,2]
[338323368,1726498237550,-190.28548967,0.00014699,2]
[338323369,1726498237559,-660.42235019,0.00014699,2]
[338323370,1726498237568,-6971.14071036,0.000147,2]
[338323371,1726498237617,-2897.89500001,0.000147,2]
[338323372,1726498237628,-2002.43616,0.000147,2]
[338323373,1726498237640,-289.394105,0.000147,2]
[338323374,1726498237651,-1262.37413926,0.000147,2]
[338323375,1726498237673,-58000.0,0.000147,2]
[338323376,1726498237686,-474.71702,0.000147,2]
[338323513,1726498239437,-260.77425825,0.000147,2]
[338323516,1726498239639,-33.83290696,0.000147,2]
[338323517,1726498239650,-1159.23824079,0.000147,2]
[338323518,1726498239661,-439.46741984,0.000147,2]
[338323519,1726498239672,-2088.0,0.000147,2]
[338323520,1726498239793,-271.67273864,0.000147,2]
[338323681,1726498242600,-11578.02151287,0.000147,2]
[338323798,1726498243845,-2896.0,0.000147,2]
[338323800,1726498243856,-1165.0,0.000147,2]
[338323802,1726498243867,-3837.67685849,0.000147,2]
[338323951,1726498245464,-162.93174475,0.000146,2]
[338323954,1726498245475,-108.72337646,0.00014699,2]
[338323999,1726498245688,-331.55819033,0.00014699,2]
[338324002,1726498245698,-824.84180967,0.000147,2]
[338324005,1726498245709,-319.9750006,0.000147,2]
[338324008,1726498245720,-2897.5,0.000147,2]
[338324193,1726498442347,333.5,0.00028,120]
[338324195,1726498549561,230.00818522,0.00011652,2]
[338324196,1726498549588,154.36181478,0.00011652,2]
[338324198,1726498620273,151.1,0.00010959,2]
[338324200,1726498647612,1925.31918458,0.00026,60]
[338324201,1726498679043,500.0,0.00026,60]
[338324214,1726499059252,1002.4665071,0.00026,60]
[338324215,1726499107645,377.04,0.00011418,2]
[338324240,1726499417388,500.0,0.00028,120]
[338324241,1726499417472,2503.65,0.00028,120]
[338324242,1726499417644,500.0,0.00028,120]
[338324243,1726499417722,2503.65,0.00028,120]
[338324244,1726499418294,500.0,0.00028,120]
[338324245,1726499418377,2503.65,0.00028,120]
[338324246,1726499418452,433.12,0.00028,120]
[338324247,1726499418524,2503.65,0.00028,120]
[338324248,1726499418597,502.82617565,0.00028,120]
[338324249,1726499418675,725.49,0.00028,120]
[338324250,1726499418752,2503.65,0.00028,120]
[338324251,1726499418835,725.49,0.00028,120]
[338324252,1726499418914,2503.65,0.00028,120]
[338324253,1726499419009,725.49,0.00028,120]
[338324254,1726499419086,2503.65,0.00028,120]
[338324255,1726499419292,725.49,0.00028,120]
[338324256,1726499419580,725.49,0.00028,120]
[338324257,1726499419841,2503.65,0.00028,120]
[338324258,1726499420121,2503.65,0.00028,120]
[338324259,1726499420235,725.49,0.00028,120]
[338324260,1726499420303,1395.92,0.00028,120]
[338324261,1726499420390,2503.65,0.00028,120]
[338324262,1726499420511,725.49,0.00028,120]
[338324263,1726499420580,1395.92,0.00028,120]
[338324264,1726499420654,2503.65,0.00028,120]
[338324265,1726499420794,725.49,0.00028,120]
[338324266,1726499420865,1395.92,0.00028,120]
[338324267,1726499420997,2503.65,0.00028,120]
[338324268,1726499421116,725.49,0.00028,120]
[338324269,1726499421187,1395.92,0.00028,120]
[338324270,1726499421265,2503.65,0.00028,120]
[338324271,1726499421404,725.49,0.00028,120]
[338324272,1726499421578,2503.65,0.00028,120]
[338324273,1726499421825,725.49,0.00028,120]
[338324274,1726499421939,2503.65,0.00028,120]
[338324275,1726499422010,1395.92,0.00028,120]
[338324276,1726499422205,725.49,0.00028,120]
[338324277,1726499422283,2503.65,0.00028,120]
[338324278,1726499422418,1395.92,0.00028,120]
[338324279,1726499422557,725.49,0.00028,120]
[338324280,1726499422701,1395.92,0.00028,120]
[338324281,1726499422825,2503.65,0.00028,120]
[338324282,1726499422897,725.49,0.00028,120]
[338324283,1726499422969,1395.92,0.00028,120]
[338324284,1726499423128,725.49,0.00028,120]
[338324285,1726499423202,2503.65,0.00028,120]
[338324286,1726499423279,1395.92,0.00028,120]
[338324287,1726499423430,725.49,0.00028,120]
[338324288,1726499423510,2503.65,0.00028,120]
[338324289,1726499423587,1395.92,0.00028,120]
[338324290,1726499423687,725.49,0.00028,120]
[338324291,1726499423767,2503.65,0.00028,120]
[338324292,1726499423845,1395.92,0.00028,120]
[338324293,1726499423975,725.49,0.00028,120]
[338324294,1726499424051,2503.65,0.00028,120]
[338324295,1726499424127,1395.92,0.00028,120]
[338324296,1726499424239,725.49,0.00028,120]
[338324297,1726499424316,2503.65,0.00028,120]
[338324298,1726499424504,725.49,0.00028,120]
[338324299,1726499424578,2503.65,0.00028,120]
[338324300,1726499424648,1395.92,0.00028,120]
[338324301,1726499424746,725.49,0.00028,120]
[338324302,1726499424819,2503.71028084,0.00028,120]
[338324303,1726499424956,1395.92,0.00028,120]
[338324304,1726499425124,725.49,0.00028,120]
[338324305,1726499425219,1395.92,0.00028,120]
[338324306,1726499425325,725.49,0.00028,120]
[338324307,1726499425729,1395.92,0.00028,120]
[338324308,1726499426010,1221.38,0.00028,120]
[338324309,1726499426173,725.53,0.00028,120]
[338324310,1726499426247,1395.92,0.00028,120]
[338324311,1726499426317,1221.38,0.00028,120]
[338324312,1726499426397,500.0,0.00028,120]
[338324313,1726499426469,1221.38,0.00028,120]
[338324314,1726499426541,1395.92,0.00028,120]
[338324315,1726499426620,500.0,0.00028,120]
[338324316,1726499426692,1221.38,0.00028,120]
[338324317,1726499426765,1395.92,0.00028,120]
[338324318,1726499426855,1221.38,0.00028,120]
[338324319,1726499426938,1395.92,0.00028,120]
[338324320,1726499427015,500.0,0.00028,120]
[338324321,1726499427099,1221.38,0.00028,120]
[338324322,1726499427170,1395.92,0.00028,120]
[338324323,1726499427242,500.0,0.00028,120]
[338324324,1726499427396,1221.38,0.00028,120]
[338324325,1726499427470,1395.92,0.00028,120]
[338324326,1726499427543,500.0,0.00028,120]
[338324327,1726499427623,1221.38,0.00028,120]
[338324328,1726499427700,1395.92,0.00028,120]
[338324329,1726499427775,500.0,0.00028,120]
[338324330,1726499427851,500.0,0.00028,120]
[338324331,1726499427926,1221.38,0.00028,120]
[338324332,1726499428003,1395.9413258,0.00028,120]
[338324333,1726499428079,500.0,0.00028,120]
[338324334,1726499428155,500.0,0.00028,120]
[338324335,1726499428270,500.0,0.00028,120]
[338324336,1726499428406,500.0,0.00028,120]
[338324337,1726499428482,1221.38,0.00028,120]
[338324338,1726499428556,500.0,0.00028,120]
[338324339,1726499428665,500.0,0.00028,120]
[338324340,1726499428745,1221.38,0.00028,120]
[338324341,1726499428820,500.0,0.00028,120]
[338324342,1726499428989,500.0,0.00028,120]
[338324343,1726499429057,1221.38,0.00028,120]
[338324344,1726499429128,500.0,0.00028,120]
[338324345,1726499429260,1221.38,0.00028,120]
[338324346,1726499429329,500.0,0.00028,120]
[338324347,1726499429399,500.0,0.00028,120]
[338324348,1726499429530,500.0,0.00028,120]
[338324349,1726499429598,586.32,0.00028,120]
[338324350,1726499429780,500.0,0.00028,120]
[338324351,1726499429886,1221.38,0.00028,120]
[338324352,1726499430084,500.0,0.00028,120]
[338324353,1726499430321,1221.38,0.00028,120]
[338324354,1726499430397,500.0,0.00028,120]
[338324355,1726499430637,1221.38,0.00028,120]
[338324356,1726499430709,500.0,0.00028,120]
[338324357,1726499430914,500.0,0.00028,120]
[338324358,1726499430986,1221.38,0.00028,120]
[338324359,1726499431176,1221.38,0.00028,120]
[338324360,1726499431290,500.0,0.00028,120]
[338324361,1726499431449,1221.38,0.00028,120]
[338324366,1726499431545,500.0,0.00028,120]
[338324367,1726499431720,1221.38,0.00028,120]
[338324369,1726499431735,-250.0,0.00013036,2]
[338324371,1726499431744,-250.0,0.00013045,2]
[338324372,1726499431754,-178.7,0.00013049,2]
[338324373,1726499431763,-355.0,0.00013049,2]
[338324374,1726499431774,-642.3977412,0.00013049,2]
[338324375,1726499431785,-397.56791311,0.00013049,2]
[338324376,1726499431819,-956.69375819,0.00013049,2]
[338324377,1726499431830,-73.0105875,0.00013049,2]
[338324378,1726499431839,-250.0,0.00013056,2]
[338324379,1726499431848,-692.8,0.00013068,2]
[338324380,1726499431857,-1500.0,0.00013072,2]
[338324381,1726499431865,-1186.27627823,0.00013179,2]
[338324382,1726499431876,-568.06748986,0.00013179,2]
[338324383,1726499431971,500.0,0.00028,120]
[338324384,1726499431984,-2046.00623191,0.00013179,2]
[338324386,1726499431994,-244.78398037,0.00013216,2]
[338324388,1726499432003,-289.1,0.00013302,2]
[338324390,1726499432013,-150.31,0.0001333,2]
[338324391,1726499432022,-320.89,0.0001333,2]
[338324392,1726499432035,-250.75,0.00013336,2]
[338324393,1726499432045,-163.96,0.00013352,2]
[338324395,1726499432054,-163.96,0.0001336,2]
[338324397,1726499432063,-500.0,0.00013362,3]
[338324399,1726499432073,-163.96,0.00013369,2]
[338324401,1726499432083,-1835.98,0.00013369,2]
[338324403,1726499432092,-163.96,0.00013377,2]
[338324404,1726499432100,-163.96,0.00013385,2]
[338324405,1726499432110,-163.96,0.00013394,2]
[338324406,1726499432119,-163.96,0.00013402,2]
[338324407,1726499432128,-163.96,0.00013411,2]
[338324408,1726499432138,-1852.42,0.00013416,2]
[338324409,1726499432147,-163.96,0.00013419,2]
[338324410,1726499432156,-307.2,0.00013427,2]
[338324411,1726499432166,-377.04,0.00013682,2]
[338324412,1726499432179,-150.01,0.00013699,2]
[338324413,1726499432193,-150.0,0.00013699,2]
[338324414,1726499432203,-163.51,0.00013774,2]
[338324415,1726499432212,-207.4,0.00013783,2]
[338324416,1726499432222,-2000.0,0.00014,2]
[338324417,1726499432231,-566.90000002,0.00014002,2]
[338324418,1726499432240,-160.913298,0.00014133,2]
[338324419,1726499432249,-150.01,0.00014269,2]
[338324420,1726499432259,-1144.0,0.00014392,2]
[338324421,1726499432268,-5859.0,0.00014392,2]
[338324422,1726499432278,-150.0,0.00014392,2]
[338324423,1726499432287,-12233.529,0.00014392,2]
[338324424,1726499432297,-274.9152174,0.0001447,2]
[338324425,1726499432306,-809.1378,0.000145,2]
[338324426,1726499432315,-2000.0,0.000145,2]
[338324427,1726499432325,-249.40605567,0.000145,2]
[338324428,1726499432334,-249.40605559,0.00014544,2]
[338324429,1726499432344,-500.0,0.00014582,2]
[338324430,1726499432353,-200.0,0.00014582,2]
[338324431,1726499432363,-249.40605559,0.00014589,2]
[338324432,1726499432372,-119147.69955406,0.000146,2]
[338324433,1726499432446,1221.38,0.00028,120]
[338324434,1726499432522,500.0,0.00028,120]
[338324435,1726499432596,1221.38,0.00028,120]
[338324436,1726499432669,1221.38,0.00028,120]
[338324437,1726499433241,1221.53,0.00028,120]
[338324438,1726499433380,831.46,0.00028,120]
[338324439,1726499433711,831.46,0.00028,120]
[338324440,1726499433998,831.46,0.00028,120]
[338324441,1726499434453,831.46,0.00028,120]
[338324442,1726499434528,500.0,0.00028,120]
[338324443,1726499434676,831.46,0.00028,120]
[338324444,1726499434754,500.0,0.00028,120]
[338324445,1726499434928,831.46,0.00028,120]
[338324446,1726499435005,500.0,0.00028,120]
[338324447,1726499435190,831.46,0.00028,120]
[338324448,1726499435267,530.8,0.00028,120]
[338324449,1726499435486,831.46,0.00028,120]
[338324450,1726499436010,831.46,0.00028,120]
[338324451,1726499436097,831.46,0.00028,120]
[338324452,1726499436327,831.46,0.00028,120]
[338324453,1726499436564,831.46,0.00028,120]
[338324454,1726499436862,831.46,0.00028,120]
[338324455,1726499436934,445.78930864,0.00028,120]
[338324456,1726499437111,831.46,0.00028,120]
[338324457,1726499437411,831.46,0.00028,120]
[338324458,1726499437515,500.0,0.00028,120]
[338324462,1726499437713,500.0,0.00028,120]
[338324463,1726499437786,831.46,0.00028,120]
[338324464,1726499437798,-1083.515,0.00014392,2]
[338324465,1726499437807,-7620.09792931,0.0001458,2]
[338324466,1726499437817,-13757.03964594,0.000146,2]
[338324467,1726499437826,-2619.0257,0.000146,2]
[338324468,1726499437835,-150.0,0.000146,2]
[338324469,1726499437845,-150.0,0.000146,2]
[338324470,1726499437854,-268.85,0.000146,2]
[338324471,1726499437863,-178.94110195,0.000146,2]
[338324472,1726499437872,-311.226853,0.000146,2]
[338324473,1726499437881,-1003.36,0.000146,2]
[338324474,1726499437891,-195.19191956,0.000146,2]
[338324475,1726499437900,-162.93174475,0.000146,2]
[338324476,1726499437910,-1000.0,0.00014626,2]
[338324477,1726499437919,-444.45730549,0.00014626,2]
[338324478,1726499437991,2222.63,0.00028,120]
[338324479,1726499438063,831.46,0.00028,120]
[338324491,1726499438251,2222.63,0.00028,120]
[338324500,1726499438321,831.46,0.00028,120]
[338324508,1726499438395,500.0,0.00028,120]
[338324522,1726499438513,2222.63,0.00028,120]
[338324530,1726499438583,831.46,0.00028,120]
[338324539,1726499438654,500.0,0.00028,120]
[338324553,1726499438779,2222.63,0.00028,120]
[338324558,1726499438874,831.46,0.00028,120]
[338324563,1726499438998,500.0,0.00028,120]
[338324572,1726499439090,2222.63,0.00028,120]
[338324580,1726499439159,831.46,0.00028,120]
[338324589,1726499439229,500.0,0.00028,120]
[338324598,1726499439313,2222.63,0.00028,120]
[338324606,1726499439384,831.46,0.00028,120]
[338324621,1726499439519,500.0,0.00028,120]
[338324628,1726499439612,2222.63,0.00028,120]
[338324629,1726499439750,831.46,0.00028,120]
[338324635,1726499439824,500.0,0.00028,120]
[338324637,1726499439836,-555.54269451,0.00014626,2]
[338324639,1726499439845,-291.3744,0.00014626,2]
[338324641,1726499439854,-63.40886487,0.00014633,2]
[338324643,1726499439865,-185.99719072,0.00014633,2]
[338324645,1726499439874,-114.00280928,0.0001466,2]
[338324652,1726499439943,2222.63,0.00028,120]
[338324655,1726499439956,-48.92893547,0.0001466,2]
[338324656,1726499439965,-178.94110193,0.00014675,2]
[338324657,1726499439974,-249.40605559,0.00014678,2]
[338324658,1726499439983,-178.7,0.0001468,2]
[338324660,1726499439993,-151.19,0.0001469,2]
[338324663,1726499440003,-163.65876381,0.0001469,2]
[338324664,1726499440012,-18.40392416,0.00014699,2]
[338324665,1726499440023,-421.87764264,0.00014699,2]
[338324666,1726499440036,-530.5992364,0.000147,2]
[338324667,1726499440047,-1158.2891498,0.000147,2]
[338324668,1726499440059,-1735.87471476,0.000147,2]
[338324669,1726499440128,831.65627305,0.00028,120]
[338324670,1726499440202,500.0,0.00028,120]
[338324671,1726499440215,-28924.66888036,0.000147,2]
[338324674,1726499440226,-560.58454009,0.000147,2]
[338324676,1726499440237,-4130.24694756,0.000147,2]
[338324678,1726499440248,-411396.36381824,0.000147,2]
[338324682,1726499440317,2222.63,0.00028,120]
[338324683,1726499440390,500.0,0.00028,120]
[338324684,1726499440461,2222.63,0.00028,120]
[338324685,1726499440584,500.0,0.00028,120]
[338324686,1726499440683,2222.63,0.00028,120]
[338324687,1726499440846,500.0,0.00028,120]
[338324688,1726499440967,2222.63,0.00028,120]
[338324689,1726499441112,500.0,0.00028,120]
[338324690,1726499441258,2222.63,0.00028,120]
[338324691,1726499441401,500.0,0.00028,120]
[338324692,1726499441508,2222.63,0.00028,120]
[338324693,1726499441740,500.0,0.00028,120]
[338324694,1726499441814,2222.63,0.00028,120]
[338324695,1726499442284,323.46,0.00028,120]
[338324696,1726499442359,2222.63,0.00028,120]
[338324697,1726499442438,1000.00000003,0.00027997,120]
[338324718,1726499442866,2222.63,0.00028,120]
[338324719,1726499442879,-213.83603136,0.000146,2]
[338324720,1726499442889,-237.25345213,0.000147,2]
[338324721,1726499442901,-26137.87963061,0.000147,2]
[338324722,1726499442911,-29632.52036956,0.000147,2]
[338324723,1726499442923,-1891.11253344,0.000147,2]
[338324724,1726499442937,-11695.53569262,0.000147,2]
[338324757,1726499443547,2222.63,0.00028,120]
[338324758,1726499443619,2222.63,0.00028,120]
[338324759,1726499443744,2222.63,0.00028,120]
[338324760,1726499443942,2222.63,0.00028,120]
[338324761,1726499444076,2222.63,0.00028,120]
[338324762,1726499444154,500.0,0.00028,120]
[338324763,1726499444379,2222.63,0.00028,120]
[338324764,1726499444451,500.0,0.00028,120]
[338324765,1726499444645,2222.81,0.00028,120]
[338324766,1726499445040,500.0,0.00028,120]
[338324767,1726499445369,500.0,0.00028,120]
[338324770,1726499445633,500.0,0.00028,120]
[338324771,1726499445887,500.0,0.00028,120]
[338324772,1726499445899,-220.1407834,0.00014699,2]
[338324773,1726499445909,-1975.75916018,0.000147,2]
[338324774,1726499445920,-29040.84250637,0.000147,2]
[338324775,1726499445936,-6002.6,0.000147,2]
[338324809,1726499446466,500.0,0.00028,120]
[338324817,1726499446539,500.0,0.00028,120]
[338324838,1726499446742,500.0,0.00028,120]
[338324856,1726499447009,500.0,0.00028,120]
[338324872,1726499447627,500.0,0.00028,120]
[338324873,1726499447915,500.0,0.00028,120]
[338324874,1726499448186,500.0,0.00028,120]
[338324875,1726499448456,500.0,0.00028,120]
[338324876,1726499448742,500.0,0.00028,120]
[338324877,1726499449034,500.0,0.00028,120]
[338324878,1726499449325,500.0,0.00028,120]
[338324879,1726499449610,500.0,0.00028,120]
[338324880,1726499449948,500.0,0.00028,120]
[338324881,1726499450243,500.0,0.00028,120]
[338324882,1726499450500,500.0,0.00028,120]
[338324883,1726499452561,1949.07,0.00028,120]
[338324884,1726499452809,1949.07,0.00028,120]
[338324885,1726499453081,1949.07,0.00028,120]
[338324886,1726499453358,1949.07,0.00028,120]
[338324887,1726499454388,1949.07,0.00028,120]
[338324888,1726499454673,1949.07,0.00028,120]
[338324889,1726499454934,1949.07,0.00028,120]
[338324890,1726499455218,1949.07,0.00028,120]
[338324891,1726499455487,1949.07,0.00028,120]
[338324892,1726499455751,1949.07,0.00028,120]
[338324893,1726499456018,1949.07,0.00028,120]
[338324894,1726499456461,1949.07,0.00028,120]
[338324895,1726499456809,1949.07,0.00028,120]
[338324896,1726499457162,1949.07,0.00028,120]
[338324897,1726499457443,1949.07,0.00028,120]
[338324898,1726499457817,1949.07,0.00028,120]
[338324899,1726499458307,1949.07,0.00028,120]
[338324900,1726499458392,1949.07,0.00028,120]
[338324901,1726499458662,1949.07,0.00028,120]
[338324902,1726499458944,1949.07,0.00028,120]
[338324903,1726499459203,1949.07,0.00028,120]
[338324904,1726499459483,1949.07,0.00028,120]
[338324905,1726499459768,1949.07,0.00028,120]
[338324906,1726499460082,1949.13,0.00028,120]
[338324907,1726499460749,958.19,0.00028,120]
[338324908,1726499461034,958.19,0.00028,120]
[338324909,1726499461265,500.0,0.00028,120]
[338324910,1726499461339,958.19,0.00028,120]
[338324911,1726499461581,500.0,0.00028,120]
[338324912,1726499461792,958.19,0.00028,120]
[338324913,1726499462149,958.19,0.00028,120]
[338324914,1726499462450,958.19,0.00028,120]
[338324915,1726499462522,500.0,0.00028,120]
[338324916,1726499462593,1131.03,0.00028,120]
[338324917,1726499462745,1131.03,0.00028,120]
[338324918,1726499462819,958.19,0.00028,120]
[338324919,1726499462891,500.0,0.00028,120]
[338324920,1726499463010,1131.03,0.00028,120]
[338324921,1726499463091,500.0,0.00028,120]
[338324922,1726499463295,1131.03,0.00028,120]
[338324923,1726499463368,500.0,0.00028,120]
[338324924,1726499463444,958.19,0.00028,120]
[338324925,1726499463561,1131.03,0.00028,120]
[338324926,1726499463638,500.0,0.00028,120]
[338324927,1726499463715,958.19,0.00028,120]
[338324928,1726499463848,1131.03,0.00028,120]
[338324929,1726499463927,958.19,0.00028,120]
[338324930,1726499464004,500.0,0.00028,120]
[338324931,1726499464138,958.19,0.00028,120]
[338324932,1726499464215,1131.03,0.00028,120]
[338324933,1726499464290,585.92401129,0.00028,120]
[338324935,1726499464566,958.19,0.00028,120]
[338324936,1726499464698,958.19,0.00028,120]
[338324937,1726499464785,1131.03,0.00028,120]
[338324938,1726499464992,958.19,0.00028,120]
[338324939,1726499465063,1839.88,0.00028,120]
[338324940,1726499465154,1131.03,0.00028,120]
[338324942,1726499465309,958.19,0.00028,120]
[338324943,1726499465398,1839.88,0.00028,120]
[338324944,1726499465471,1131.03,0.00028,120]
[338324946,1726499465553,958.19,0.00028,120]
[338324947,1726499465695,1839.88,0.00028,120]
[338324948,1726499465772,1131.03,0.00028,120]
[338324950,1726499465989,1839.88,0.00028,120]
[338324951,1726499466057,1131.03,0.00028,120]
[338324953,1726499466493,958.19,0.00028,120]
[338324955,1726499466562,1131.03,0.00028,120]
[338324956,1726499466639,1839.88,0.00028,120]
[338324957,1726499466718,958.19,0.00028,120]
[338324958,1726499466788,1131.03,0.00028,120]
[338324961,1726499467127,500.0,0.00028,120]
[338324963,1726499467208,1839.88,0.00028,120]
[338324965,1726499467290,958.19,0.00028,120]
[338324967,1726499467364,1131.03,0.00028,120]
[338324969,1726499467436,500.0,0.00028,120]
[338324971,1726499467520,1839.88,0.00028,120]
[338324972,1726499467586,958.19,0.00028,120]
[338324974,1726499467670,1131.03,0.00028,120]
[338324975,1726499467882,1839.88,0.00028,120]
[338324976,1726499467958,958.19,0.00028,120]
[338324977,1726499468030,500.0,0.00028,120]
[338324978,1726499468134,958.19,0.00028,120]
[338324980,1726499468206,500.0,0.00028,120]
[338324981,1726499468278,1839.88,0.00028,120]
[338324982,1726499468352,1131.03,0.00028,120]
[338324983,1726499468423,958.19,0.00028,120]
[338324984,1726499468501,1839.88,0.00028,120]
[338324985,1726499468570,1131.03,0.00028,120]
[338324986,1726499468651,958.31,0.00028,120]
[338324987,1726499468726,1839.88,0.00028,120]
[338324988,1726499468797,1131.03,0.00028,120]
[338324989,1726499468879,1839.88,0.00028,120]
[338324990,1726499468954,1131.03,0.00028,120]
[338324991,1726499469035,1839.88,0.00028,120]
[338324992,1726499469111,1131.03,0.00028,120]
[338324993,1726499469198,1839.88,0.00028,120]
[338324994,1726499469266,1131.03,0.00028,120]
[338324995,1726499469511,1839.88,0.00028,120]
[338324996,1726499469579,1131.03,0.00028,120]
[338324997,1726499469667,1839.88,0.00028,120]
[338324998,1726499469736,1131.03,0.00028,120]
[338324999,1726499469809,500.0,0.00028,120]
[338325000,1726499469893,1839.88,0.00028,120]
[338325002,1726499470138,1839.88,0.00028,120]
[338325004,1726499470337,500.0,0.00028,120]
[338325006,1726499470432,1839.88,0.00028,120]
[338325010,1726499470681,1839.88,0.00028,120]
[338325015,1726499470992,1839.88,0.00028,120]
[338325017,1726499471359,1839.88,0.00028,120]
[338325019,1726499471538,1839.88,0.00028,120]
[338325023,1726499471792,3239.32,0.00028,120]
[338325026,1726499471878,1839.88,0.00028,120]
[338325038,1726499472722,3239.32,0.00028,120]
[338325042,1726499472988,3239.32,0.00028,120]
[338325047,1726499473287,3239.32,0.00028,120]
[338325051,1726499473545,3239.32,0.00028,120]
[338325058,1726499473958,3239.32,0.00028,120]
[338325059,1726499474039,7316.08012608,0.00027997,120]
[338325061,1726499474127,3239.32,0.00028,120]
[338325066,1726499474381,3239.32,0.00028,120]
[338325068,1726499474476,837.7,0.00028,120]
[338325071,1726499474650,3239.32,0.00028,120]
[338325073,1726499474744,837.7,0.00028,120]
[338325077,1726499474935,3239.32,0.00028,120]
[338325079,1726499475023,837.7,0.00028,120]
[338325083,1726499475239,3239.32,0.00028,120]
[338325085,1726499475318,837.7,0.00028,120]
[338325088,1726499475499,3239.32,0.00028,120]
[338325090,1726499475590,837.7,0.00028,120]
[338325093,1726499475747,3239.32,0.00028,120]
[338325096,1726499475878,837.7,0.00028,120]
[338325098,1726499475995,3239.32,0.00028,120]
[338325100,1726499476139,837.7,0.00028,120]
[338325102,1726499476271,3239.32,0.00028,120]
[338325107,1726499476517,837.7,0.00028,120]
[338325109,1726499476600,3239.32,0.00028,120]
[338325112,1726499476767,837.7,0.00028,120]
[338325114,1726499476849,3239.32,0.00028,120]
[338325117,1726499477026,837.7,0.00028,120]
[338325123,1726499477419,3239.32,0.00028,120]
[338325125,1726499477541,837.7,0.00028,120]
[338325127,1726499477616,837.7,0.00028,120]
[338325129,1726499477690,500.0,0.00028,120]
[338325130,1726499477759,3239.32,0.00028,120]
[338325131,1726499477850,837.7,0.00028,120]
[338325132,1726499477916,500.0,0.00028,120]
[338325134,1726499477988,3239.32,0.00028,120]